Workbook

Sheet HESAPLAMA TABLOSU
C2: AYDINLATMA YATIRIM ve İŞLETME MALİYET HESAPLAMA TABLOSU *
C4: AYDINLATMA PROJE DEĞİŞKENLERİ
C7: ODA BİLGİLERİ | N7: UYGULAMA - İŞLETME BİLGİLERİ
C8: ENİ | D8: BOYU | E8: YÜKSEKLİĞİ | J8: YÜZEY YANSITMA ORANLARI | M8: İNDEKS | N8: İŞLETME SÜRESİ | Q8: HEDEF AYDINLIK SEVİYESİ | U8: YILLIK ÇALIŞMA GÜNÜ | Y8: GÜNLÜK ORTALAMA AYDINLATMA SÜRESİ | AD8: ENERJİ BİRİM FİYATI
C9: METRE | D9: METRE | E9: ÇALIŞMA DÜZLEMİ | H9: ARMATÜR YÜKSEKLİĞİ | J9: TAVAN | K9: DUVAR | L9: ZEMİN | M9: RI - K | N9: YIL | Q9: LUX ( çalışma düzleminde ortalama ) | U9: GÜN | Y9: SAAT | AD9: EURO / kWs
C10: 9 | D10: 16 | E10: 0.8 | H10: 2.75 | J10: 70 | K10: 50 | L10: 20 | M10: =(C10*D10)/((H10-E10)*(C10+D10)) -> 2.953846154 | N10: 6 | Q10: 400 | U10: 252 | Y10: 6.5 | AD10: 0.25
C11: * Bu hesaplayıcının amacı, kullanıcıya, armatür optik ve elektriksel ortalama verileri, yatırım ve işletim (enerji) maliyet seviyeleri ve farklı alternatif aydınlatma sistemlerinin LIBUS'a kıyasla enerji tasarrufu yoluyla tahmini yatırım geri dönüşümü hakkında yaklaşık bir "fikir" vermektir. Belirtilen değerler (LIBUS'a ait olanlar hariç), herhangi bir armatür veya armatür markası hakkında kesin bilgi olarak değerlendirilemez.
C12: * Bu sayfanın altındaki tabloda hedef verileri elde etmek için yukarıdaki "değişkenler" tablosundaki tüm beyaz hücrelerin doldurulması gerekir. Herhangi bir sorunuz olması durumunda lütfen project@libuslighting.com ile iletişime geçin. LIBUS ekibi size LIBUS marka armatürler için ücretsiz profesyonel proje desteği sağlayacaktır.
C15: AYDINLATMA ARMATÜRÜ BİLGİSİ | H15: FLORESAN | J15: LED PANEL | M15: LIBUS SBL13WB 600 x 600 / 625 x 625 mm
D16: ARMATÜR TİPİ | H16: 4 x 18 Watt | I16: 4 x 14 Watt | J16: EDGE - LIT | K16: BACK-LIT | M16: STANDARD | R16: E-WHITE | W16: E-SILVER | AB16: PERFORMANCE
H17: T26 (T8) | I17: T16 (T5) | J17: ALT KAPAK TİPİ | M17: LSS | O17: LSP | R17: LWS | T17: LWP | W17: LES | Y17: LEP | AB17: LPS | AD17: LPP
H18: elektronik balast | J18: opal difüzör | L18: mikro prisma | M18: BL | N18: CT | O18: BL | P18: CT | Q18: MC | R18: BL | S18: CT | T18: BL | U18: CT | V18: MC | W18: BL | X18: CT | Y18: BL | Z18: CT | AA18: MC | AB18: BL | AC18: CT | AD18: BL | AE18: CT | AF18: MC
D19: SİSTEM GÜCÜ | F19: : | G19: watt | H19: 81 | I19: =I20*(H19/H20) -> 63 | J19: 40 | K19: 35 | L19: 27 | M19: 27 | N19: 27 | O19: 25 | P19: 25 | Q19: 27 | R19: 25 | S19: 25 | T19: 21 | U19: 21 | V19: 25 | W19: 25 | X19: 25 | Y19: 21 | Z19: 21 | AA19: 25 | AB19: 21 | AC19: 21 | AD19: 19 | AE19: 19 | AF19: 21
D20: AKTİF GÜÇ | F20: : | G20: watt | H20: 72 | I20: =4*14 -> 56 | J20: =J19*0.86 -> 34.4 | K20: =K19*0.865 -> 30.275 | L20: =L19*0.874 -> 23.598 | M20: 23.598 | N20: 23.598 | O20: 21.85 | P20: 21.85 | Q20: 23.598 | R20: 21.85 | S20: 21.85 | T20: =T19*0.89 -> 18.69 | U20: =U19*0.89 -> 18.69 | V20: =V19*0.89 -> 22.25 | W20: =W19*0.874 -> 21.85 | X20: =X19*0.874 -> 21.85 | Y20: =Y19*0.89 -> 18.69 | Z20: =Z19*0.89 -> 18.69 | AA20: =AA19*0.89 -> 22.25 | AB20: =AB19*0.874 -> 18.354 | AC20: 18.354 | AD20: 16.606 | AE20: 16.606 | AF20: 18.354
D21: LAMBA IŞIK AKISI | F21: : | G21: lümen | H21: =5400 -> 5400 | I21: =5400 -> 5400 | J21: =J20*160 -> 5504 | K21: =K20*165 -> 4995.375 | L21: 3893.67 | M21: =M20*165 -> 3893.67 | N21: =N20*165 -> 3893.67 | O21: =O20*170 -> 3714.5 | P21: =P20*170 -> 3714.5 | Q21: 4011.66 | R21: =R20*170 -> 3714.5 | S21: =S20*170 -> 3714.5 | T21: =T20*175 -> 3270.75 | U21: 3270.75 | V21: 3893.75 | W21: =W20*170 -> 3714.5 | X21: =X20*170 -> 3714.5 | Y21: 3270.75 | Z21: 3270.75 | AA21: 3893.75 | AB21: =AB20*180 -> 3303.72 | AC21: =AC20*180 -> 3303.72 | AD21: =AD20*185 -> 3072.11 | AE21: 3072.11 | AF21: 3395.49
D22: ARMATÜR L.O.R. | F22: : | G22: % | H22: 57 | I22: 62 | J22: 61 | K22: 66 | L22: 72.7 | M22: 73.8 | N22: 72.7 | O22: 73.8 | P22: 72.7 | Q22: 72.2 | R22: 87.6 | S22: 86.3 | T22: 87.6 | U22: 86.3 | V22: 85.1 | W22: 86.8 | X22: 85.5 | Y22: 86.8 | Z22: 85.5 | AA22: 84.3 | AB22: 95.3 | AC22: 93.9 | AD22: 95.3 | AE22: 93.9 | AF22: 92.5
D23: ARMATÜR IŞIK AKISI | F23: : | G23: lümen | H23: =H21*(H22/100) -> 3078 | I23: =I21*(I22/100) -> 3348 | J23: =J21*(J22/100) -> 3357.44 | K23: =K21*(K22/100) -> 3296.9475 | L23: =L21*(L22/100) -> 2830.69809 | M23: =M21*(M22/100) -> 2873.52846 | N23: =N21*(N22/100) -> 2830.69809 | O23: =O21*(O22/100) -> 2741.301 | P23: 2700.4415 | Q23: 2896.41852 | R23: 3253.902 | S23: 3205.6135 | T23: 2865.177 | U23: 2822.65725 | V23: 3313.58125 | W23: 3224.186 | X23: 3175.8975 | Y23: 2839.011 | Z23: 2796.49125 | AA23: 3282.43125 | AB23: 3148.44516 | AC23: 3102.19308 | AD23: 2927.72083 | AE23: 2884.71129 | AF23: =AF21*(AF22/100) -> 3140.82825
D24: ETKİNLİK FAKTÖRÜ U.F. ave. | F24: : | G24: % | H24: 82 | I24: 82 | J24: 76.73 | K24: 75.97 | L24: 83 | M24: 91.2 | N24: 90.7 | O24: 91.6 | P24: 91.06 | Q24: 86.1 | R24: 84.8 | S24: 84.4 | T24: 84.6 | U24: 85.08 | V24: 84.95 | W24: 96.94 | X24: 92.69 | Y24: 93.82 | Z24: 93.02 | AA24: 87.06 | AB24: 93.82 | AC24: 89.8 | AD24: 93.8 | AE24: 93 | AF24: 84.4
D25: ETKİN IŞIK AKISI | F25: : | G25: lümen | H25: =H23*(H24/100) -> 2523.96 | I25: =I23*(I24/100) -> 2745.36 | J25: 2576.163712 | K25: 2504.691016 | L25: 2349.479415 | M25: 2620.657956 | N25: 2567.443168 | O25: 2511.031716 | P25: 2459.02203 | Q25: 2493.816346 | R25: 2759.308896 | S25: 2705.537794 | T25: 2423.939742 | U25: 2401.516788 | V25: 2814.887272 | W25: 3125.525908 | X25: 2943.739393 | Y25: 2663.56012 | Z25: 2601.296161 | AA25: 2857.684646 | AB25: =AB23*(AB24/100) -> 2953.871249 | AC25: 2785.769386 | AD25: 2746.202139 | AE25: 2682.7815 | AF25: 2650.859043
D26: KAMAŞMA - UGR (ave.) | F26: : | G26: < | H26: 15-17 | I26: 15-17 | J26: 18-19 | K26: 19-21 | L26: 18-19 | M26: 8.9 | N26: 8.9 | O26: 9.5 | P26: 9.4 | Q26: 11.7 | R26: 13 | S26: 13.5 | T26: 13.5 | U26: 13.2 | V26: 12.7 | W26: 8.1 | X26: 8.8 | Y26: 8.2 | Z26: 8.6 | AA26: 10.9 | AB26: 8.2 | AC26: 8.5 | AD26: 8.6 | AE26: 8.6 | AF26: 11
D27: VERİMLİLİK | F27: : | G27: lm / w | H27: =H23/H19 -> 38 | I27: =I23/I19 -> 53.14285714 | J27: =J23/J19 -> 83.936 | K27: =K23/K19 -> 94.1985 | L27: 115 | M27: 116 | N27: 115 | O27: 126 | P27: 125 | Q27: 119 | R27: 135 | S27: 133 | T27: 147 | U27: 145 | V27: 138 | W27: 134 | X27: 133 | Y27: 145 | Z27: 144 | AA27: 137 | AB27: 156 | AC27: 156 | AD27: 169 | AE27: 169 | AF27: 160
D28: LLF : light loss factor = | H28: 0.8 | I28: 0.81 | J28: 0.75 | K28: 0.85 | L28: 0.865 | M28: 0.88 | N28: 0.89 | O28: 0.88 | P28: 0.89 | Q28: 0.89 | R28: =M28+0.01 -> 0.89 | S28: =N28+0.01 -> 0.9 | T28: 0.89 | U28: 0.9 | V28: 0.9 | W28: 0.89 | X28: 0.9 | Y28: 0.89 | Z28: 0.9 | AA28: 0.9 | AB28: =W28+0.01 -> 0.9 | AC28: =X28+0.01 -> 0.91 | AD28: 0.9 | AE28: 0.91 | AF28: 0.91
D29: n : no.of lamps / luminaire = | H29: 4 | I29: 4 | J29: 120 | K29: 169 | L29: 169 | M29: 169 | N29: 169 | O29: 169 | P29: 169 | Q29: 169 | R29: 169 | S29: 169 | T29: 169 | U29: 169 | V29: 169 | W29: 169 | X29: 169 | Y29: 169 | Z29: 169 | AA29: 169 | AB29: 169 | AC29: 169 | AD29: 169 | AE29: 169 | AF29: 169
D30: F : luminous flux per lamp = (initial values) | H30: =H23/H29 -> 769.5 | I30: =I23/I29 -> 837 | J30: 27.97866667 | K30: 19.50856509 | L30: 16.74969284 | M30: 17.00312698 | N30: 16.74969284 | O30: 16.22071598 | P30: 15.97894379 | Q30: 17.13857112 | R30: 19.25385799 | S30: 18.96812722 | T30: 16.95371006 | U30: 16.70211391 | V30: 19.60698964 | W30: 19.07802367 | X30: 18.7922929 | Y30: 16.79888166 | Z30: 16.5472855 | AA30: 19.42267012 | AB30: 18.62985302 | AC30: 18.35617207 | AD30: 17.32379189 | AE30: 17.06929757 | AF30: =AF23/AF29 -> 18.58478254
D31: UF : RI = 2.0 / C:70 - W:50 - F:20 = | H31: 0.912578 | I31: 0.912578 | J31: 0.823546 | K31: 0.84547013 | L31: 0.92 | M31: 1 | N31: 1 | O31: 1 | P31: 1 | Q31: 0.96 | R31: 0.95 | S31: 0.95 | T31: 0.95 | U31: 0.95 | V31: 0.95 | W31: 1.04 | X31: 1.01 | Y31: 1.02 | Z31: 1.01 | AA31: 0.96 | AB31: 1.02 | AC31: 0.99 | AD31: 1.02 | AE31: 1.01 | AF31: 0.96

Sheet SONUÇLAR
C2: VERİLEN PROJE DEĞERLERİ İÇİN TAHMİNİ HESAPLAMA SONUÇLARI *
C5: ='HESAPLAMA TABLOSU'!N10 -> 6 | D5: YIL | H5: FLORESAN | J5: LED PANEL | M5: LIBUS SBL13WB 600 x 600 / 625 x 625 mm
C6: İŞLETME SÜRESİ | H6: 4 x 18 Watt | I6: 4 x 14 Watt | J6: EDGE - LIT | K6: BACK-LIT | M6: STANDARD | R6: E-WHITE | W6: E-SILVER | AB6: PERFORMANCE
C7: ARMATÜR TİPİ | H7: T26 (T8) | I7: T16 (T5) | J7: ALT KAPAK TİPİ | M7: LSS | O7: LSP | R7: LWS | T7: LWP | W7: LES | Y7: LEP | AB7: LPS | AD7: LPP
H8: elektronik balast | J8: opal difüzör | L8: mikro prisma | M8: BL | N8: CT | O8: BL | P8: CT | Q8: MC | R8: BL | S8: CT | T8: BL | U8: CT | V8: MC | W8: BL | X8: CT | Y8: BL | Z8: CT | AA8: MC | AB8: BL | AC8: CT | AD8: BL | AE8: CT | AF8: MC
C9: HEDEF AYDINLIK SEVİYESİ İÇİN GEREKLİ ARMATÜR SAYISI | G9: ADET | H9: =('HESAPLAMA TABLOSU'!$Q$10*('HESAPLAMA TABLOSU'!$C$10*'HESAPLAMA TABLOSU'!$D$10))/('HESAPLAMA TABLOSU'!H28*('HESAPLAMA TABLOSU'!H24/100)*'HESAPLAMA TABLOSU'!H23) -> 28.52660106 | I9: =('HESAPLAMA TABLOSU'!$Q$10*('HESAPLAMA TABLOSU'!$C$10*'HESAPLAMA TABLOSU'!$D$10))/('HESAPLAMA TABLOSU'!I28*('HESAPLAMA TABLOSU'!I24/100)*'HESAPLAMA TABLOSU'!I23) -> 25.90229009 | J9: =('HESAPLAMA TABLOSU'!$Q$10*('HESAPLAMA TABLOSU'!$C$10*'HESAPLAMA TABLOSU'!$D$10))/('HESAPLAMA TABLOSU'!J28*('HESAPLAMA TABLOSU'!J24/100)*'HESAPLAMA TABLOSU'!J23) -> 29.81176997 | K9: =('HESAPLAMA TABLOSU'!$Q$10*('HESAPLAMA TABLOSU'!$C$10*'HESAPLAMA TABLOSU'!$D$10))/('HESAPLAMA TABLOSU'!K28*('HESAPLAMA TABLOSU'!K24/100)*'HESAPLAMA TABLOSU'!K23) -> 27.05511596 | L9: =('HESAPLAMA TABLOSU'!$Q$10*('HESAPLAMA TABLOSU'!$C$10*'HESAPLAMA TABLOSU'!$D$10))/('HESAPLAMA TABLOSU'!L28*('HESAPLAMA TABLOSU'!L24/100)*'HESAPLAMA TABLOSU'!L23) -> 28.34227657 | M9: =('HESAPLAMA TABLOSU'!$Q$10*('HESAPLAMA TABLOSU'!$C$10*'HESAPLAMA TABLOSU'!$D$10))/('HESAPLAMA TABLOSU'!M28*('HESAPLAMA TABLOSU'!M24/100)*'HESAPLAMA TABLOSU'!M23) -> 24.97637867 | N9: =('HESAPLAMA TABLOSU'!$Q$10*('HESAPLAMA TABLOSU'!$C$10*'HESAPLAMA TABLOSU'!$D$10))/('HESAPLAMA TABLOSU'!N28*('HESAPLAMA TABLOSU'!N24/100)*'HESAPLAMA TABLOSU'!N23) -> 25.20760807 | O9: =('HESAPLAMA TABLOSU'!$Q$10*('HESAPLAMA TABLOSU'!$C$10*'HESAPLAMA TABLOSU'!$D$10))/('HESAPLAMA TABLOSU'!O28*('HESAPLAMA TABLOSU'!O24/100)*'HESAPLAMA TABLOSU'!O23) -> 26.0667936 | P9: =('HESAPLAMA TABLOSU'!$Q$10*('HESAPLAMA TABLOSU'!$C$10*'HESAPLAMA TABLOSU'!$D$10))/('HESAPLAMA TABLOSU'!P28*('HESAPLAMA TABLOSU'!P24/100)*'HESAPLAMA TABLOSU'!P23) -> 26.3190408 | Q9: =('HESAPLAMA TABLOSU'!$Q$10*('HESAPLAMA TABLOSU'!$C$10*'HESAPLAMA TABLOSU'!$D$10))/('HESAPLAMA TABLOSU'!Q28*('HESAPLAMA TABLOSU'!Q24/100)*'HESAPLAMA TABLOSU'!Q23) -> 25.95183131 | R9: =('HESAPLAMA TABLOSU'!$Q$10*('HESAPLAMA TABLOSU'!$C$10*'HESAPLAMA TABLOSU'!$D$10))/('HESAPLAMA TABLOSU'!R28*('HESAPLAMA TABLOSU'!R24/100)*'HESAPLAMA TABLOSU'!R23) -> 23.45482277 | S9: =('HESAPLAMA TABLOSU'!$Q$10*('HESAPLAMA TABLOSU'!$C$10*'HESAPLAMA TABLOSU'!$D$10))/('HESAPLAMA TABLOSU'!S28*('HESAPLAMA TABLOSU'!S24/100)*'HESAPLAMA TABLOSU'!S23) -> 23.65518609 | T9: =('HESAPLAMA TABLOSU'!$Q$10*('HESAPLAMA TABLOSU'!$C$10*'HESAPLAMA TABLOSU'!$D$10))/('HESAPLAMA TABLOSU'!T28*('HESAPLAMA TABLOSU'!T24/100)*'HESAPLAMA TABLOSU'!T23) -> 26.69996288 | U9: =('HESAPLAMA TABLOSU'!$Q$10*('HESAPLAMA TABLOSU'!$C$10*'HESAPLAMA TABLOSU'!$D$10))/('HESAPLAMA TABLOSU'!U28*('HESAPLAMA TABLOSU'!U24/100)*'HESAPLAMA TABLOSU'!U23) -> 26.64982411 | V9: =('HESAPLAMA TABLOSU'!$Q$10*('HESAPLAMA TABLOSU'!$C$10*'HESAPLAMA TABLOSU'!$D$10))/('HESAPLAMA TABLOSU'!V28*('HESAPLAMA TABLOSU'!V24/100)*'HESAPLAMA TABLOSU'!V23) -> 22.73625684 | W9: =('HESAPLAMA TABLOSU'!$Q$10*('HESAPLAMA TABLOSU'!$C$10*'HESAPLAMA TABLOSU'!$D$10))/('HESAPLAMA TABLOSU'!W28*('HESAPLAMA TABLOSU'!W24/100)*'HESAPLAMA TABLOSU'!W23) -> 20.70662763 | X9: =('HESAPLAMA TABLOSU'!$Q$10*('HESAPLAMA TABLOSU'!$C$10*'HESAPLAMA TABLOSU'!$D$10))/('HESAPLAMA TABLOSU'!X28*('HESAPLAMA TABLOSU'!X24/100)*'HESAPLAMA TABLOSU'!X23) -> 21.74105499 | Y9: =('HESAPLAMA TABLOSU'!$Q$10*('HESAPLAMA TABLOSU'!$C$10*'HESAPLAMA TABLOSU'!$D$10))/('HESAPLAMA TABLOSU'!Y28*('HESAPLAMA TABLOSU'!Y24/100)*'HESAPLAMA TABLOSU'!Y23) -> 24.29796896 | Z9: =('HESAPLAMA TABLOSU'!$Q$10*('HESAPLAMA TABLOSU'!$C$10*'HESAPLAMA TABLOSU'!$D$10))/('HESAPLAMA TABLOSU'!Z28*('HESAPLAMA TABLOSU'!Z24/100)*'HESAPLAMA TABLOSU'!Z23) -> 24.60311939 | AA9: =('HESAPLAMA TABLOSU'!$Q$10*('HESAPLAMA TABLOSU'!$C$10*'HESAPLAMA TABLOSU'!$D$10))/('HESAPLAMA TABLOSU'!AA28*('HESAPLAMA TABLOSU'!AA24/100)*'HESAPLAMA TABLOSU'!AA23) -> 22.39575318 | AB9: =('HESAPLAMA TABLOSU'!$Q$10*('HESAPLAMA TABLOSU'!$C$10*'HESAPLAMA TABLOSU'!$D$10))/('HESAPLAMA TABLOSU'!AB28*('HESAPLAMA TABLOSU'!AB24/100)*'HESAPLAMA TABLOSU'!AB23) -> 21.66648259 | AC9: =('HESAPLAMA TABLOSU'!$Q$10*('HESAPLAMA TABLOSU'!$C$10*'HESAPLAMA TABLOSU'!$D$10))/('HESAPLAMA TABLOSU'!AC28*('HESAPLAMA TABLOSU'!AC24/100)*'HESAPLAMA TABLOSU'!AC23) -> 22.72144407 | AD9: =('HESAPLAMA TABLOSU'!$Q$10*('HESAPLAMA TABLOSU'!$C$10*'HESAPLAMA TABLOSU'!$D$10))/('HESAPLAMA TABLOSU'!AD28*('HESAPLAMA TABLOSU'!AD24/100)*'HESAPLAMA TABLOSU'!AD23) -> 23.3049123 | AE9: =('HESAPLAMA TABLOSU'!$Q$10*('HESAPLAMA TABLOSU'!$C$10*'HESAPLAMA TABLOSU'!$D$10))/('HESAPLAMA TABLOSU'!AE28*('HESAPLAMA TABLOSU'!AE24/100)*'HESAPLAMA TABLOSU'!AE23) -> 23.59368562 | AF9: =('HESAPLAMA TABLOSU'!$Q$10*('HESAPLAMA TABLOSU'!$C$10*'HESAPLAMA TABLOSU'!$D$10))/('HESAPLAMA TABLOSU'!AF28*('HESAPLAMA TABLOSU'!AF24/100)*'HESAPLAMA TABLOSU'!AF23) -> 23.87780801
C10: TAHMİNİ BİRİM ARMATÜR MALİYETİ | G10: EURO | H10: 40 | I10: 45 | J10: 48 | K10: 48 | L10: 60 | M10: 62 | N10: 67 | O10: 68 | P10: 74 | Q10: 86 | R10: 68 | S10: 73 | T10: 72 | U10: 78 | V10: 91 | W10: 71 | X10: 76 | Y10: 75 | Z10: 80 | AA10: 93 | AB10: 86 | AC10: 92 | AD10: 97 | AE10: 102 | AF10: 109
C11: ARMATÜR TOPLAM YATIRIM MALİYETİ | H11: =H9*H10 -> 1141.064042 | I11: =I9*I10 -> 1165.603054 | J11: 1430.964959 | K11: 1298.645566 | L11: 1700.536594 | M11: =M9*M10 -> 1548.535477 | N11: 1688.909741 | O11: 1772.541965 | P11: 1947.609019 | Q11: 2231.857493 | R11: 1594.927948 | S11: 1726.828585 | T11: 1922.397327 | U11: 2078.68628 | V11: 2068.999373 | W11: 1470.170562 | X11: 1652.320179 | Y11: 1822.347672 | Z11: 1968.249551 | AA11: 2082.805046 | AB11: 1863.317503 | AC11: 2090.372855 | AD11: 2260.576493 | AE11: 2406.555933 | AF11: 2602.681073
C12: YILLIK ENERJİ / ELEKTRİK TÜKETİMİ | G12: kWh | H12: =((H9*'HESAPLAMA TABLOSU'!H19)/1000)*'HESAPLAMA TABLOSU'!$U$10*'HESAPLAMA TABLOSU'!$Y$10 -> 3784.852375 | I12: =((I9*'HESAPLAMA TABLOSU'!I19)/1000)*'HESAPLAMA TABLOSU'!$U$10*'HESAPLAMA TABLOSU'!$Y$10 -> 2672.960923 | J12: =((J9*'HESAPLAMA TABLOSU'!J19)/1000)*'HESAPLAMA TABLOSU'!$U$10*'HESAPLAMA TABLOSU'!$Y$10 -> 1953.267169 | K12: =((K9*'HESAPLAMA TABLOSU'!K19)/1000)*'HESAPLAMA TABLOSU'!$U$10*'HESAPLAMA TABLOSU'!$Y$10 -> 1551.069798 | L12: =((L9*'HESAPLAMA TABLOSU'!L19)/1000)*'HESAPLAMA TABLOSU'!$U$10*'HESAPLAMA TABLOSU'!$Y$10 -> 1253.465524 | M12: =((M9*'HESAPLAMA TABLOSU'!M19)/1000)*'HESAPLAMA TABLOSU'!$U$10*'HESAPLAMA TABLOSU'!$Y$10 -> 1104.605323 | N12: =((N9*'HESAPLAMA TABLOSU'!N19)/1000)*'HESAPLAMA TABLOSU'!$U$10*'HESAPLAMA TABLOSU'!$Y$10 -> 1114.831675 | O12: =((O9*'HESAPLAMA TABLOSU'!O19)/1000)*'HESAPLAMA TABLOSU'!$U$10*'HESAPLAMA TABLOSU'!$Y$10 -> 1067.435198 | P12: =((P9*'HESAPLAMA TABLOSU'!P19)/1000)*'HESAPLAMA TABLOSU'!$U$10*'HESAPLAMA TABLOSU'!$Y$10 -> 1077.764721 | Q12: =((Q9*'HESAPLAMA TABLOSU'!Q19)/1000)*'HESAPLAMA TABLOSU'!$U$10*'HESAPLAMA TABLOSU'!$Y$10 -> 1147.745692 | R12: =((R9*'HESAPLAMA TABLOSU'!R19)/1000)*'HESAPLAMA TABLOSU'!$U$10*'HESAPLAMA TABLOSU'!$Y$10 -> 960.4749924 | S12: =((S9*'HESAPLAMA TABLOSU'!S19)/1000)*'HESAPLAMA TABLOSU'!$U$10*'HESAPLAMA TABLOSU'!$Y$10 -> 968.6798705 | T12: =((T9*'HESAPLAMA TABLOSU'!T19)/1000)*'HESAPLAMA TABLOSU'!$U$10*'HESAPLAMA TABLOSU'!$Y$10 -> 918.425323 | U12: =((U9*'HESAPLAMA TABLOSU'!U19)/1000)*'HESAPLAMA TABLOSU'!$U$10*'HESAPLAMA TABLOSU'!$Y$10 -> 916.7006497 | V12: =((V9*'HESAPLAMA TABLOSU'!V19)/1000)*'HESAPLAMA TABLOSU'!$U$10*'HESAPLAMA TABLOSU'!$Y$10 -> 931.0497178 | W12: =((W9*'HESAPLAMA TABLOSU'!W19)/1000)*'HESAPLAMA TABLOSU'!$U$10*'HESAPLAMA TABLOSU'!$Y$10 -> 847.9364013 | X12: =((X9*'HESAPLAMA TABLOSU'!X19)/1000)*'HESAPLAMA TABLOSU'!$U$10*'HESAPLAMA TABLOSU'!$Y$10 -> 890.2962016 | Y12: =((Y9*'HESAPLAMA TABLOSU'!Y19)/1000)*'HESAPLAMA TABLOSU'!$U$10*'HESAPLAMA TABLOSU'!$Y$10 -> 835.8015363 | Z12: =((Z9*'HESAPLAMA TABLOSU'!Z19)/1000)*'HESAPLAMA TABLOSU'!$U$10*'HESAPLAMA TABLOSU'!$Y$10 -> 846.2981006 | AA12: =((AA9*'HESAPLAMA TABLOSU'!AA19)/1000)*'HESAPLAMA TABLOSU'!$U$10*'HESAPLAMA TABLOSU'!$Y$10 -> 917.1060927 | AB12: =((AB9*'HESAPLAMA TABLOSU'!AB19)/1000)*'HESAPLAMA TABLOSU'!$U$10*'HESAPLAMA TABLOSU'!$Y$10 -> 745.2836682 | AC12: =((AC9*'HESAPLAMA TABLOSU'!AC19)/1000)*'HESAPLAMA TABLOSU'!$U$10*'HESAPLAMA TABLOSU'!$Y$10 -> 781.5722332 | AD12: =((AD9*'HESAPLAMA TABLOSU'!AD19)/1000)*'HESAPLAMA TABLOSU'!$U$10*'HESAPLAMA TABLOSU'!$Y$10 -> 725.2954806 | AE12: =((AE9*'HESAPLAMA TABLOSU'!AE19)/1000)*'HESAPLAMA TABLOSU'!$U$10*'HESAPLAMA TABLOSU'!$Y$10 -> 734.2826839 | AF12: =((AF9*'HESAPLAMA TABLOSU'!AF19)/1000)*'HESAPLAMA TABLOSU'!$U$10*'HESAPLAMA TABLOSU'!$Y$10 -> 821.34884
C13: ARMATÜR BAŞINA YILLIK ELEKTRİK MALİYETİ | G13: EURO | H13: =(H12/H9)*'HESAPLAMA TABLOSU'!$AD$10 -> 33.1695 | I13: =(I12/I9)*'HESAPLAMA TABLOSU'!$AD$10 -> 25.7985 | J13: =(J12/J9)*'HESAPLAMA TABLOSU'!$AD$10 -> 16.38 | K13: =(K12/K9)*'HESAPLAMA TABLOSU'!$AD$10 -> 14.3325 | L13: =(L12/L9)*'HESAPLAMA TABLOSU'!$AD$10 -> 11.0565 | M13: =(M12/M9)*'HESAPLAMA TABLOSU'!$AD$10 -> 11.0565 | N13: =(N12/N9)*'HESAPLAMA TABLOSU'!$AD$10 -> 11.0565 | O13: =(O12/O9)*'HESAPLAMA TABLOSU'!$AD$10 -> 10.2375 | P13: =(P12/P9)*'HESAPLAMA TABLOSU'!$AD$10 -> 10.2375 | Q13: =(Q12/Q9)*'HESAPLAMA TABLOSU'!$AD$10 -> 11.0565 | R13: =(R12/R9)*'HESAPLAMA TABLOSU'!$AD$10 -> 10.2375 | S13: =(S12/S9)*'HESAPLAMA TABLOSU'!$AD$10 -> 10.2375 | T13: =(T12/T9)*'HESAPLAMA TABLOSU'!$AD$10 -> 8.5995 | U13: =(U12/U9)*'HESAPLAMA TABLOSU'!$AD$10 -> 8.5995 | V13: =(V12/V9)*'HESAPLAMA TABLOSU'!$AD$10 -> 10.2375 | W13: =(W12/W9)*'HESAPLAMA TABLOSU'!$AD$10 -> 10.2375 | X13: =(X12/X9)*'HESAPLAMA TABLOSU'!$AD$10 -> 10.2375 | Y13: =(Y12/Y9)*'HESAPLAMA TABLOSU'!$AD$10 -> 8.5995 | Z13: =(Z12/Z9)*'HESAPLAMA TABLOSU'!$AD$10 -> 8.5995 | AA13: =(AA12/AA9)*'HESAPLAMA TABLOSU'!$AD$10 -> 10.2375 | AB13: =(AB12/AB9)*'HESAPLAMA TABLOSU'!$AD$10 -> 8.5995 | AC13: =(AC12/AC9)*'HESAPLAMA TABLOSU'!$AD$10 -> 8.5995 | AD13: =(AD12/AD9)*'HESAPLAMA TABLOSU'!$AD$10 -> 7.7805 | AE13: =(AE12/AE9)*'HESAPLAMA TABLOSU'!$AD$10 -> 7.7805 | AF13: =(AF12/AF9)*'HESAPLAMA TABLOSU'!$AD$10 -> 8.5995
C14: YILLIK TOPLAM AYDINLATMA ENERJİ MALİYETİ | H14: =H13*H9 -> 946.2130937 | I14: =I13*I9 -> 668.2402308 | J14: =J13*J9 -> 488.3167922 | K14: 387.7674495 | L14: 313.3663809 | M14: 276.1513307 | N14: 278.7079187 | O14: 266.8587994 | P14: 269.4411802 | Q14: 286.9364229 | R14: 240.1187481 | S14: 242.1699676 | T14: 229.6063307 | U14: 229.1751624 | V14: 232.7624294 | W14: 211.9841003 | X14: 222.5740504 | Y14: 208.9503841 | Z14: 211.5745252 | AA14: 229.2765232 | AB14: 186.3209171 | AC14: 195.3930583 | AD14: 181.3238702 | AE14: 183.570671 | AF14: 205.33721
C15: VERİLİ DÖNEMDE AYDINLATMA YATIRIM + İŞLETME TOPLAM MALİYETİ | H15: =H11+(H14*$C$5) -> 6818.342604 | I15: =I11+(I14*$C$5) -> 5175.044439 | J15: 4360.865712 | K15: 3625.250263 | L15: 3580.73488 | M15: 3205.443462 | N15: 3361.157253 | O15: 3373.694761 | P15: 3564.2561 | Q15: 3953.47603 | R15: 3035.640437 | S15: 3179.848391 | T15: 3300.035312 | U15: 3453.737255 | V15: 3465.573949 | W15: 2742.075163 | X15: 2987.764481 | Y15: 3076.049976 | Z15: 3237.696702 | AA15: 3458.464185 | AB15: 2981.243005 | AC15: 3262.731204 | AD15: 3348.519714 | AE15: 3507.979959 | AF15: 3834.704333
C17: * bu hesaplayıcının amacı, kullanıcıya, armatür optik ve elektriksel ortalama verileri, yatırım ve işletim (enerji) maliyet seviyeleri ve farklı alternatif aydınlatma sistemlerinin LIBUS'a kıyasla enerji tasarrufu yoluyla tahmini yatırım geri dönüşümü hakkında yaklaşık bir "fikir" vermektir. Belirtilen değerler (LIBUS'a ait olanlar hariç), herhangi bir armatür veya armatür markası hakkında kesin bilgi olarak değerlendirilemez.
